Cogmind - Beta 15 @@@ ROGUE MODE // 2025.06.03 @ 20:29:40 Player: KN-OKO Result: Destroyed by IA-2P6(R) with Subdweller Beam Cannon Performance ------------- Evolutions (0) 0 Regions Visited (2) 400 Robots Destroyed (17) 85 Value Destroyed (411) 411 Prototype IDs (0) 0 Alien Tech Used (0) 0 Bonus (0) 0 TOTAL SCORE: 896 Bonus ------- None Cogmind --------- Core Integrity 0/250 Matter 272/300 Energy 123/125 System Corruption 0% Temperature Cool (29) Movement Treading (240) Ox1 Location -10/Subcaves Parts ------- > --- POWER (1) -------- Light Ion Engine > --- PROPULSION (2) --- Light Treads Light Treads > --- UTILITY (2) ------ High-capacity Storage Unit Hardened Light Armor Plating > --- WEAPON (2) ------- Subdweller Laser Slug Cannon > --- INVENTORY (20) --- Improved Treads Improved Treads Improved Treads Improved Treads Subdweller Monowheel Subdweller Optics Seismic Detector Light Armor Plating Light Armor Plating Hardened Light Armor Plating Tractor Beam Assault Rifle Heavy Assault Rifle Heavy Assault Rifle Heavy Assault Rifle Heavy Assault Rifle Subdweller Machine Gun Battle Cannon Peak State ------------ > --- POWER ------------ Light Ion Engine > --- PROPULSION ------- Light Treads Light Treads > --- UTILITY ---------- High-capacity Storage Unit Hardened Light Armor Plating > --- WEAPON ----------- Subdweller Laser Slug Cannon > --- INVENTORY -------- Improved Treads Improved Treads Improved Treads Improved Treads Subdweller Monowheel Subdweller Optics Seismic Detector Light Armor Plating Light Armor Plating Hardened Light Armor Plating Tractor Beam Assault Rifle Heavy Assault Rifle Heavy Assault Rifle Heavy Assault Rifle Heavy Assault Rifle Subdweller Machine Gun Battle Cannon [Rating: 15] Favorites ----------- Power Ion Engine Engine Ion Engine Propulsion Light Treads Treads Light Treads Utility High-capacity Storage Unit Device Seismic Detector Storage High-capacity Storage Unit Protection Hardened Light Armor Plating Weapon Assault Rifle Energy Gun Subdweller Laser Ballistic Gun Assault Rifle Ballistic Cannon Slug Cannon Build | -11 -10 -10 ------- Run | Yrd Mat Sub Slots Evolved . | . . . Power . | . . . Propulsion . | . . . Utility . | . . . Weapon . | . . . Parts Attached 19 | 7 2 10 Power 3 | 1 1 1 Engine 3 | 1 1 1 Core . | . . . Reactor . | . . . Propulsion 4 | 2 . 2 Treads 4 | 2 . 2 Leg . | . . . Wheel . | . . . Hover . | . . . Flight . | . . . Utility 6 | 2 1 3 Device 1 | 1 . . Storage 2 | 1 1 . Processor . | . . . Hackware . | . . . Protection 3 | . . 3 Artifact . | . . . Weapon 6 | 2 . 4 Energy Gun 1 | . . 1 Energy Cannon . | . . . Ballistic Gun 4 | 2 . 2 Ballistic Cannon 1 | . . 1 Launcher . | . . . Special Weapon . | . . . Impact Weapon . | . . . Slashing Weapon . | . . . Piercing Weapon . | . . . Special Melee Weapon . | . . . Unidentified Prototypes . | . . . Parts Lost 8 | . . 8 Power 2 | . . 2 Propulsion 2 | . . 2 Utility 2 | . . 2 Weapon 2 | . . 2 Highest Loss Streak 8 | . . 8 To Critical Strikes . | . . . Average Backups 14 | 2 14 15 Power 1 | . 1 . Propulsion 4 | 1 4 4 Utility 4 | . 4 5 Weapon 3 | . 2 4 Tool/Special . | . . . Unused Backups 22 | . 7 15 Power . | . . . Propulsion 9 | . 4 5 Utility 8 | . 3 5 Weapon 5 | . . 5 Tool/Special . | . . . Average Slot Usage (%) 99 | . 100 99 Engine 13 | . 14 13 Treads 28 | . 28 28 Device 7 | . 14 . Storage 14 | . 14 14 Protection 5 | . . 13 Energy Gun 3 | . . 8 Ballistic Gun 24 | . 28 19 Peak Build Rating 15 | 7 10 15 Average Rating 9 | 4 8 11 On Entrance 5 | . 7 10 Naked Turns . | . . . Heaviest Build 59 | 13 50 59 Greatest Support 40 | 40 40 40 Greatest Overweight (x) 1 | . 1 1 Average Overweight (x) . | . . 1 Largest Inventory Capacity 20 | 8 20 20 Average Capacity 18 | 7 18 20 Most Carried 20 | 3 20 20 Average Carried 14 | 2 14 14 Final Capacity 20 | 8 20 20 Final Carried 20 | 3 20 18 Class Distribution -------------------- 100% | Mutant Dominant Class ---------------- Mutant | -10/Materials Mutant | -10/Subcaves Resources | -11 -10 -10 ----------- Run | Yrd Mat Sub Matter Collected 677 | 255 179 243 Remotely . | . . . Salvage Created 558 | 27 225 306 Parts 35 | 3 16 16 Haulers Intercepted 1 | . 1 . Recyclers Shooed . | . . . Parts Field Recycled . | . . . Retrieved Matter . | . . . Parts Self-Destructed 8 | . . 8 Prevented . | . . . Kills | -11 -10 -10 ------- Run | Yrd Mat Sub Combat Hostiles Destroyed 15 | . 6 9 Guns 14 | . 6 8 Cannons 1 | . . 1 Classes Destroyed 5 | 1 3 1 Tunneler 1 | 1 . . Hauler 1 | . 1 . Swarmer 6 | . 3 3 Grunt 3 | . 3 . Subdweller 6 | . . 6 Best Kill Streak 3 | 1 3 3 Combat Bots Only 3 | . 3 3 Max Kills in Single Turn 1 | 1 1 1 Gunslinging . | . . . Exploded . | . . . Melee . | . . . Uniques/NPCs Destroyed . | . . . Combat | -11 -10 -10 -------- Run | Yrd Mat Sub Hostile Shots Fired 105 | . 27 78 Missed 22 | . 9 13 Hits 83 | . 18 65 Projectile 83 | . 18 65 AOE 2 | . . 2 Critical Strikes 2 | . . 2 Damage Taken 1701 | . 175 1526 Core 252 | . . 252 Absorbed by Shields . | . . . Core Remaining (%) 100 | 100 . . Volleys Fired 65 | 2 22 41 Largest 2 | 2 2 2 Hottest 100 | 40 40 100 Shots Fired 122 | 4 44 74 Gun 119 | 4 44 71 Cannon 3 | . . 3 Launcher . | . . . Special . | . . . Kinetic 112 | 4 44 64 Thermal 10 | . . 10 Explosive . | . . . Electromagnetic . | . . . Robot Hit Streak 15 | 3 7 15 Robot Miss Streak 3 | . 3 1 Penetration Max . | . . . Secondary Targets 2 | . 2 . Max Gunslinging Chain 1 | . 1 . Shots Hit Robots 84 | 3 27 54 Core Hits 27 | 1 11 15 Critical Kills 1 | . . 1 Critical Parts Destroyed 1 | . 1 . Critical Strikes 2 | . 1 1 Destroy 2 | . 1 1 Melee Attacks . | . . . Impact . | . . . Slashing . | . . . Piercing . | . . . Sneak Attacks . | . . . Combat Hostiles . | . . . Follow-up Attacks . | . . . Damage Inflicted 1140 | 36 357 747 Guns 1114 | 36 357 721 Cannons 26 | . . 26 Explosions . | . . . Melee . | . . . Ramming . | . . . Kinetic 1118 | 36 357 725 Thermal 22 | . . 22 Explosive . | . . . Electromagnetic . | . . . Impact . | . . . Slashing . | . . . Piercing . | . . . Highest Corruption . | . . . Average Corruption . | . . . Corruption Purged . | . . . Corruption Blocked . | . . . Overload Shots . | . . . Overflow Damage . | . . . Projectiles . | . . . Explosions . | . . . Melee . | . . . Knockbacks . | . . . Impact . | . . . Kinetic . | . . . Secondary . | . . . Self-Inflicted Damage . | . . . Shots . | . . . Rammed . | . . . Targets Rammed . | . . . Kicked . | . . . Crushed . | . . . Highest Temperature 289 | . . 289 Average Temperature 116 | . . 116 Received Heat Transfer 866 | . 72 794 Effects 1 | . . 1 Energy Bleed 1 | . . 1 Siege Activations . | . . . Martial Activations . | . . . Shielding Activations . | . . . Robots Disrupted . | . . . Combat Hostiles . | . . . Robots Corrupted . | . . . Combat Hostiles . | . . . Parts Fried . | . . . Impact Corruptions . | . . . Robots Melted . | . . . Combat Hostiles . | . . . Parts Melted 1 | . . 1 Heat Transferred 25 | . . 25 Parts Sabotaged . | . . . Parts Stolen . | . . . Parts Stripped . | . . . Power Chain Reactions . | . . . Alert | -11 -10 -10 ------- Run | Yrd Mat Sub Maximum Alert Level . | . . . Low Security (%) 100 | 100 100 . Level 1 . | . . . Level 2 . | . . . Level 3 . | . . . Level 4 . | . . . Level 5 . | . . . High Security . | . . . Max Security . | . . . Peak Influence 70 | 5 70 . Initial . | . . . Average 7 | . 8 . Influence Increases 212 | 5 137 70 Destroy 0b10 Robot/C 180 | . 120 60 Destroy 0b10 Robot/NC 10 | 5 5 . Destroy Leader 22 | . 12 10 Influence Decreases 212 | 5 137 70 Time Decay 212 | 5 137 70 Squads Dispatched 1 | . 1 . Investigation . | . . . Extermination . | . . . Reinforcement 1 | . 1 . Assault . | . . . Garrison . | . . . Intercept . | . . . Searches Triggered . | . . . Construction Impeded . | . . . Haulers Reinforced . | . . . Active Scanning Responses . | . . . Cargo Convoy Interrupts . | . . . Stealth | -11 -10 -10 --------- Run | Yrd Mat Sub Distress Signals 1 | . 1 . Communications Jammed . | . . . Distress Signals . | . . . Times Spotted 18 | . 6 12 Peak Tracking Total 4 | . 3 4 Tactical Retreats 1 | . . 1 Traps | -11 -10 -10 ------- Run | Yrd Mat Sub Traps Triggered 1 | . . 1 Indirectly . | . . . Trap Hack Attempts . | . . . Triggered . | . . . Disarmed . | . . . Reprogrammed . | . . . Reused . | . . . Traps Extracted . | . . . Installed . | . . . Triggered . | . . . Machines | -11 -10 -10 ---------- Run | Yrd Mat Sub Machines Disabled . | . . . Max in Single Turn . | . . . Machines Repaired . | . . . Machines Dismantled . | . . . Machines Sabotaged . | . . . Overloaded Fab Kills . | . . . Hacking | -11 -10 -10 --------- Run | Yrd Mat Sub Machines Accessed . | . . . Terminals . | . . . Fabricators . | . . . Repair Stations . | . . . Recycling Units . | . . . Scanalyzers . | . . . Garrison Access . | . . . Total Hacks . | . . . Successful . | . . . Failed . | . . . Catastrophic . | . . . Database Lockouts . | . . . Manual . | . . . Terminals . | . . . Fabricators . | . . . Repair Stations . | . . . Recycling Units . | . . . Scanalyzers . | . . . Garrison Access . | . . . Terminal Hacks . | . . . Fabricator Hacks . | . . . Repair Station Hacks . | . . . Recycling Unit Hacks . | . . . Scanalyzer . | . . . Garrison Access Hacks . | . . . Unauthorized Hacks . | . . . Terminals . | . . . Fabricators . | . . . Repair Stations . | . . . Recycling Units . | . . . Scanalyzers . | . . . Garrison Access . | . . . Data Cores Recovered . | . . . Used . | . . . Hacking Detections . | . . . Full Trace Events . | . . . Feedback Events . | . . . Feedback Blocked . | . . . Robot Schematics Acquired . | . . . Robots Built . | . . . Authchips . | . . . Time . | . . . Total Robot Build Rating . | . . . Part Schematics Acquired . | . . . Parts Built . | . . . Authchips . | . . . Time . | . . . Total Part Build Rating . | . . . Parts Repaired . | . . . Time . | . . . Parts Recycled . | . . . Recycled Matter . | . . . Retrieved Matter . | . . . Retrieved Components . | . . . Parts Scanalyzed . | . . . Part Schematics Acquired . | . . . Parts Damaged . | . . . Bothacking | -11 -10 -10 ------------ Run | Yrd Mat Sub Used RIF Installer . | . . . Robots Hacked . | . . . Non-combat . | . . . Combat . | . . . Robot Hacks Applied . | . . . Relay Couplers Released . | . . . Fabnet Peak Effective % . | . . . Robots Rewired . | . . . Allies Hacked . | . . . Hacks Repelled . | . . . Allies | -11 -10 -10 -------- Run | Yrd Mat Sub Total Allies . | . . . Largest Group . | . . . Highest-Rated Group . | . . . Highest-Rated Ally . | . . . Total Orders . | . . . Ally Attacks . | . . . Total Damage . | . . . Kills . | . . . Allies Corrupted . | . . . Allies Melted . | . . . Intel | -11 -10 -10 ------- Run | Yrd Mat Sub Active Infowar (turns) 1484 | 19 1455 10 Seismic 1484 | 19 1455 10 Robot Analysis Total . | . . . Derelict Logs Recovered . | . . . Drone Launches . | . . . Drone Recoveries . | . . . Exploration | -11 -10 -10 ------------- Run | Yrd Mat Sub Turns Passed 2696 | 98 1455 1143 Spaces Moved 1050 | 51 584 415 Core 3 | 3 . . Treads 1047 | 48 584 415 Legs . | . . . Wheels . | . . . Hover . | . . . Flight . | . . . Fastest Speed 50 | 50 160 240 Average Speed 229 | 153 228 240 Slowest Speed 240 | 160 240 240 Overloaded Moves . | . . . Propulsion Burnouts . | . . . Robots Hopped . | . . . Potential Cave-ins . | . . . Cave-ins Triggered . | . . . Exploration Rate (%) 37 | 3 82 26 Regions Visited 2 Branch Regions 1 Pre-discovered Areas . | . . . Known Exits Taken . | . . . Unknown Exits Taken 2 | 1 1 . Scrap Searched 3 | . . 3 Spaces Dug . | . . . Terrain Destroyed 1 | . . 1 Melee . | . . . Projectile 1 | . . 1 AOE . | . . . Terrain Rammed . | . . . Walls Destroyed . | . . . Machines Disabled . | . . . Actions | -11 -10 -10 --------- Run | Yrd Mat Sub Total 1218 | 63 669 486 Wait 43 | 1 31 11 Move 1048 | 50 583 415 Hop . | . . . Pick Up 33 | 3 23 7 Fast Attach 7 | 7 . . Attach 8 | . . 8 Detach . | . . . Swap 5 | . 2 3 Drop 9 | . 8 1 Fire 65 | 2 22 41 Melee . | . . . Ram . | . . . Kick . | . . . Crush . | . . . Escape Stasis . | . . . Rewire . | . . . Trap . | . . . Miscellaneous . | . . . Route ------- -11/Scrapyard -10/Materials (discovered 4 exits: [*Mat x2] / [*Min] / [*Sub]) -10/Subcaves History --------- Turn | Location | Event 2 | -11/Scrapyard | Met Revision 17 12 | -11/Scrapyard | Discovered new exit (range 15) 99 | -11/Scrapyard | Entered Materials 305 | -10/Materials | Build established: Mutant 323 | -10/Materials | Discovered new exit (range 15) 933 | -10/Materials | Discovered new exit (range 16) 1427 | -10/Materials | Discovered new exit (range 10) 1535 | -10/Materials | Discovered new exit (range 9) 1554 | -10/Materials | Entered Subcaves 1555 | -10/Subcaves | Approached by a straggling Scientist 1564 | -10/Subcaves | Ambushed by Subdwellers from Twisted Machinery 1595 | -10/Subcaves | Core integrity fell below 50% 1635 | -10/Subcaves | Core integrity fell below 20% 1692 | -10/Subcaves | Lost 8 parts (2p2n2u2w) 2256 | -10/Subcaves | Shifting Twisted Machinery released Sub. Machine Gun 2697 | -10/Subcaves | Destroyed by IA-2P6(R) with Subdweller Beam Cannon Last Messages --------------- 02562_ 02-NUU(u) builds Twisted Machinery. 02593_ Searching scrap... 02593_ Found Battle Cannon. 02593_ Found 42 Matter. 02594_ Acquired 10 matter. 02598_ Acquired Battle Cannon. 02621_ Searching scrap... 02621_ Found Slug Cannon. 02621_ Found Sub. Machine Gun. 02621_ Found 40 Matter. 02625_ Acquired Slug Cannon. 02626_ Searching scrap... 02626_ Found Sub. Monowheel. 02626_ Found 61 Matter. 02626_ Triggered Piercing Trap. 02626_ Spikes shoot up from the floor. 02626_ Critical hit (Impale). 02627_ Subatomizers dissect the Sub. Machine Gun. 02689_ 7K-UCF(R) suffers critical hit (Destroy). 02689_ 7K-UCF(R) destroyed. Map ----- +----------------------------------------------------+ | | | | | | | | | | | | | | | ?????????????????????????????????????????????????? | | ?????????????????????????????????????????????????? | | ?????????????????????????????????????????????????? | | ?????????????????????????????????????????????????? | | ?????????????????????????????????????????????????? | | ?????????????????????????????????????????????????? | | ?????????????????????????????????????????????????? | | ?????????????????????????????????????????????????? | | ?????????????????????????????????????????????##??? | | ???????????????????????????????###???????????"#??? | | ???????????????????????????????#"#??????????""#??? | | ???????????????????????????????#%####???####" #??? | | ???????????????????????????????#" ""#####"%%[ #??? | | ???????????????????????????????##" # = "#??? | | ?????????????????????##?????????# ## "##### | | ????????????????###### ##?####??####" ## " ##"""# | | ????????????????# R%### ##??###" "######" | | ????????????????## & #### " ### " " | | ?????????????????# #;;@ ### "##" | | ????????????? ##### "### | | ??????????# ????# #?# | | ??????????? ?????### ## ##?? | | ?????????? ###????????### ### ###??? | | ?????????? ??????????????## ## ##???? | | ??????????? ????????????????# ##### | | ??????????? ??????????????????## | | ???????????????????????????????## ## # | | ????????????????????????????????# #### # | | ????????????????????????????????## ##??# | | ?????????????????????????????????#####???# # | | ????????????????????????????????????????# ## | | ???????????????????????????????????????# ##### | | ??????????????????????????????????????# ???? | | ????????????????????????????????????? #???? | | ????????????????????????????????????# #???? | | ????????????????????????????????????# #???? | | ????????????????????????????????????# ????? | | ????????????????????????????????????## ## ????? | | ?????????????????????????????????????? ?? ????? | | ??????????????????????????????????????????? ????? | | ?????????????????????????????????????????????????? | | ?????????????????????????????????????????????????? | | ?????????????????????????????????????????????????? | +----------------------------------------------------+ Best States ------------- Heat Dissipation 25 Energy Generation 10 Energy Capacity 250 Matter Stores 300 Matter Capacity 300 Sight Range 16 Terrain Scan Density 10 Armor Coverage 150 Evasion (%) 40 Recoil Reduction 2 Item Schematics ----------------- None Robot Schematics ------------------ None Fabricated ------------ Nothing Repaired ---------- Nothing Alien Tech Used ----------------- None Achievements -------------- None Challenges ------------ None Game ------ Seed ThrowingNavigationClaws Manual? 0 Play Time 00:10:19 Cumulative 490.1 hours Start 2025.06.03 @ 20:22:44 End 2025.06.03 @ 20:29:40 Sessions 1 Manual Loads 0 Difficulty Rogue Special Mode None Game No. 339 Rogue 339 Adventurer 0 Explorer 0 Win Type - Total 45 Types 39/0/4/2/0/0/0/0/0/0 Lore% 82 Gallery% 79 Achievement% 72 Wizard Run 0 Options --------- Layout 0 ASCII 0 Keyboard 1 Movement Numpad Keybinds 0 Fullscreen 2 Font 24/Tamsyn Map View 76x50 Zoom Use 0% Tactical HUD 1 Map Filters NONE Filters NONE Steam 1 RUN: 443fa7ec-5c9b-458a-84c7-e0249b5613ba